[Event "GER-ch Youth U12W 2020"]
[Site "Willingen"]
[Date "2020.10.31"]
[Round "7.9"]
[White "Jacobasch, Ronja"]
[Black "Czäczine, Laura"]
[Result "1-0"]
[ECO "A08"]
[WhiteElo "1549"]
[BlackElo "1309"]
[Annotator "NA RC"]
[PlyCount "107"]
[EventDate "2020.10.27"]
[EventType "swiss"]
[EventRounds "7"]
[EventCountry "GER"]
[SourceTitle "playchess.com"]
[Source "ChessBase"]
[SourceQuality "1"]
[TimeControl "40/5400+30:1800+30"]

1. Nf3 {[%emt 0:00:00]} d5 {[%emt 0:00:00]} 2. g3 {[%emt 0:00:00]} c5 {[%emt 0:00:00]} 3. Bg2 {[%emt 0:00:00]} Nc6 {[%emt 0:00:10]} 4. d3 {[%emt 0:00:00]} e5 {[%emt 0:00:14]} 5. O-O {[%emt 0:00:06]} h5 {[%emt 0:00:48]} 6. Nbd2 {[%emt 0:00:15]} Be7 {[%emt 0:03:05]} 7. e4 {[%emt 0:00:23]} h4 {[%emt 0:03:52]} 8. Re1 {[%emt 0:01:02]} hxg3 {[%emt 0:02:32]} 9. fxg3 {[%emt 0:00:08]} Bg4 {[%emt 0:05:47]} 10. exd5 {[%emt 0:05:56]} Qxd5 {[%emt 0:03:30]} 11. Nc4 {[%emt 0:07:10]} Qe6 {[%emt 0:08:58]} 12. Qd2 {[%emt 0:08:38]} Bxf3 {[%emt 0:02:05]} 13. Bxf3 {[%emt 0:00:16]} Nd4 {[%emt 0:04:45]} 14. Bxb7 {[%emt 0:11:54]} Rb8 {[%emt 0:01:59]} 15. Bg2 {[%emt 0:02:11]} f6 {[%emt 0:05:55]} 16. c3 {[%emt 0:01:35]} Nf5 {[%emt 0:01:20]} 17. Qc2 {[%emt 0:07:31]} Kf8 {[%emt 0:07:18]} 18. Rf1 {[%emt 0:07:39]} Nd6 {[%emt 0:01:42]} 19. Nxd6 {[%emt 0:00:55]} Bxd6 {[%emt 0:00:13]} 20. Qa4 {[%emt 0:03:09]} Qf7 {[%emt 0:05:58]} 21. Qc6 {[%emt 0:06:22]} Rd8 {[%emt 0:02:43]} 22. Be3 {[%emt 0:07:08]} Ne7 {[%emt 0:02:27]} 23. Qb7 {[%emt 0:01:08]} Qh5 {[%emt 0:01:41]} 24. h3 {[%emt 0:03:49]} Qg6 {[%emt 0:05:51]} 25. Bf2 {[%emt 0:01:42]} Nf5 {[%emt 0:03:39]} 26. Qe4 {[%emt 0:03:04]} Qg5 {[%emt 0:03:41]} 27. h4 {[%emt 0:01:55]} Qg6 {[%emt 0:02:06]} 28. Bh3 {[%emt 0:02:40]} Nxh4 {[%emt 0:02:24]} 29. Qxg6 {[%emt 0:02:27]} Nxg6 {[%emt 0:00:07]} 30. Bg2 {[%emt 0:00:51]} Be7 {[%emt 0:02:21]} 31. Be4 {[%emt 0:00:23]} Kf7 {[%emt 0:00:59]} 32. a3 {[%emt 0:01:31]} a5 {[%emt 0:00:53]} 33. c4 {[%emt 0:00:36]} Nf8 {[%emt 0:01:05]} 34. Be1 {[%emt 0:00:56]} Ra8 {[%emt 0:00:59]} 35. Bxa8 {[%emt 0:00:16]} g5 {[%emt 0:00:21]} 36. Bxa5 {[%emt 0:00:46]} Kg6 {[%emt 0:00:40]} 37. Be4+ {[%emt 0:00:36]} Kh5 {[%emt 0:00:22]} 38. Kg2 {[%emt 0:01:11]} Rg8 {[%emt 0:00:52]} 39. Bf5 {[%emt 0:00:58]} g4 {[%emt 0:00:27]} 40. b4 {[%emt 0:00:30]} Kh6 {[%emt 0:01:07]} 41. b5 {[%emt 0:30:44]} Bd6 {[%emt 0:30:38]} 42. Bd2+ {[%emt 0:00:58]} Kg7 {[%emt 0:00:32]} 43. a4 {[%emt 0:00:11]} Kf7 {[%emt 0:00:12]} 44. a5 {[%emt 0:00:21]} Ne6 {[%emt 0:00:22]} 45. Bxe6+ {[%emt 0:00:22]} Kxe6 {[%emt 0:00:06]} 46. a6 {[%emt 0:00:20]} Ra8 {[%emt 0:01:30]} 47. b6 {[%emt 0:00:24]} Kd7 {[%emt 0:02:04]} 48. Rxf6 {[%emt 0:01:13]} e4 {[%emt 0:00:55]} 49. b7 {[%emt 0:00:54]} Ra7 {[%emt 0:00:24]} 50. Bf4 {[%emt 0:00:49]} Kc7 {[%emt 0:00:35]} 51. Bxd6+ {[%emt 0:00:26]} Kd7 {[%emt 0:00:21]} 52. b8=Q {[%emt 0:00:30]} Rxa6 {[%emt 0:00:20]} 53. Qb7+ {[%emt 0:00:13]} Kd8 {[%emt 0:00:16]} 54. Rf8# 1-0

[Event "GER-ch Youth U12W 2020"]
[Site "Willingen"]
[Date "2020.10.31"]
[Round "7.10"]
[White "Cerkez, Lorena"]
[Black "Stepanjan, Marianne"]
[Result "1-0"]
[ECO "B23"]
[WhiteElo "1258"]
[BlackElo "1351"]
[Annotator "NA RC"]
[PlyCount "111"]
[EventDate "2020.10.27"]
[EventType "swiss"]
[EventRounds "7"]
[EventCountry "GER"]
[SourceTitle "playchess.com"]
[Source "ChessBase"]
[SourceQuality "1"]
[TimeControl "40/5400+30:1800+30"]

1. e4 {[%emt 0:00:00]} c5 {[%emt 0:00:00]} 2. Nc3 {[%emt 0:00:00]} d6 {[%emt 0:00:00]} 3. f4 {[%emt 0:00:00]} Nd7 {[%emt 0:01:44]} 4. Nf3 {[%emt 0:00:17]} e6 {[%emt 0:01:19]} 5. Bb5 {[%emt 0:01:11]} a6 {[%emt 0:01:41]} 6. Bxd7+ {[%emt 0:00:07]} Bxd7 {[%emt 0:00:11]} 7. O-O {[%emt 0:00:39]} Nf6 {[%emt 0:05:59]} 8. d3 {[%emt 0:00:22]} Be7 {[%emt 0:00:41]} 9. h3 {[%emt 0:05:37]} O-O {[%emt 0:01:00]} 10. Be3 {[%emt 0:01:09]} Bc6 {[%emt 0:06:31]} 11. Ne2 {[%emt 0:28:52]} b5 {[%emt 0:12:08]} 12. c3 {[%emt 0:12:26]} Nd7 {[%emt 0:10:04]} 13. Nd2 {[%emt 0:13:11]} a5 {[%emt 0:09:32]} 14. a3 {[%emt 0:05:22]} Qc7 {[%emt 0:10:11]} 15. d4 {[%emt 0:02:54]} Nf6 {[%emt 0:02:30]} 16. Ng3 {[%emt 0:02:41]} Qb7 {[%emt 0:11:14]} 17. Qc2 {[%emt 0:07:04]} Rfe8 {[%emt 0:07:21]} 18. Rfe1 {[%emt 0:08:54]} Bf8 {[%emt 0:00:44]} 19. Bf2 {[%emt 0:00:37]} b4 {[%emt 0:03:13]} 20. Nf3 {[%emt 0:02:53]} b3 {[%emt 0:03:19]} 21. Qb1 {[%emt 0:00:12]} Nd7 {[%emt 0:02:48]} 22. Nd2 {[%emt 0:03:22]} e5 {[%emt 0:02:31]} 23. d5 {[%emt 0:02:20]} Ba4 {[%emt 0:00:05]} 24. f5 {[%emt 0:00:27]} Nf6 {[%emt 0:01:18]} 25. Qd1 {[%emt 0:00:20]} g6 {[%emt 0:00:47]} 26. Be3 {[%emt 0:00:14]} Bg7 {[%emt 0:01:46]} 27. Qf3 {[%emt 0:00:59]} Rec8 {[%emt 0:02:15]} 28. c4 {[%emt 0:00:08]} Bd7 {[%emt 0:00:10]} 29. Bg5 {[%emt 0:00:21]} a4 {[%emt 0:01:19]} 30. h4 {[%emt 0:00:16]} h6 {[%emt 0:00:40]} 31. Bxf6 {[%emt 0:00:30]} Be8 {[%emt 0:01:48]} 32. Bxg7 {[%emt 0:00:18]} Kxg7 {[%emt 0:00:02]} 33. f6+ {[%emt 0:00:43]} Kh7 {[%emt 0:00:34]} 34. h5 {[%emt 0:01:04]} g5 {[%emt 0:00:40]} 35. Nf5 {[%emt 0:00:56]} Bd7 {[%emt 0:00:41]} 36. Nxd6 {[%emt 0:00:30]} g4 {[%emt 0:00:28]} 37. Qe3 {[%emt 0:00:54]} Qb6 {[%emt 0:00:10]} 38. Nxc8 {[%emt 0:00:08]} Rxc8 {[%emt 0:00:03]} 39. Rf1 Rg8 {[%emt 0:00:38]} 40. Qg3 {[%emt 0:01:26]} Rg5 {[%emt 0:00:12]} 41. Qh4 {[%emt 0:00:36]} Qa5 {[%emt 0:00:24]} 42. Rad1 {[%emt 0:02:45]} g3 {[%emt 0:00:53]} 43. Rf5 {[%emt 0:04:05]} Bxf5 {[%emt 0:04:26]} 44. exf5 {[%emt 0:00:18]} Qd8 {[%emt 0:09:25]} 45. Ne4 {[%emt 0:01:22]} Rg8 {[%emt 0:01:07]} 46. Rd3 {[%emt 0:01:03]} Qd7 {[%emt 0:03:25]} 47. Rxg3 {[%emt 0:01:23]} Qe8 {[%emt 0:01:43]} 48. Rxg8 {[%emt 0:00:38]} Qxg8 {[%emt 0:00:05]} 49. Qg3 {[%emt 0:01:00]} Qxg3 {[%emt 0:00:37]} 50. Nxg3 {[%emt 0:00:05]} e4 {[%emt 0:00:04]} 51. Nxe4 {[%emt 0:00:23]} Kh8 {[%emt 0:00:20]} 52. d6 {[%emt 0:00:09]} Kg8 {[%emt 0:00:11]} 53. d7 Kh7 {[%emt 0:00:09]} 54. Kf2 {[%emt 0:00:19]} Kh8 {[%emt 0:00:39]} 55. d8=Q+ {[%emt 0:00:29]} Kh7 {[%emt 0:00:11]} 56. Qe7 {[%emt 0:00:16]} 1-0

[Event "GER-ch Youth U12W 2020"]
[Site "Willingen"]
[Date "2020.10.31"]
[Round "7.11"]
[White "Reich, Elisabeth"]
[Black "Moldovan, Stela"]
[Result "1-0"]
[ECO "B28"]
[WhiteElo "1128"]
[BlackElo "1219"]
[Annotator "NA RC"]
[PlyCount "149"]
[EventDate "2020.10.27"]
[EventType "swiss"]
[EventRounds "7"]
[EventCountry "GER"]
[SourceTitle "playchess.com"]
[Source "ChessBase"]
[SourceQuality "1"]
[TimeControl "40/5400+30:1800+30"]

1. e4 {[%emt 0:00:00]} c5 {[%emt 0:00:12]} 2. Nf3 {[%emt 0:00:00]} a6 {[%emt 0:00:07]} 3. d3 {[%emt 0:00:00]} Nc6 {[%emt 0:00:25]} 4. Nbd2 {[%emt 0:00:00]} e6 {[%emt 0:00:34]} 5. g3 {[%emt 0:00:13]} g6 {[%emt 0:00:12]} 6. Bg2 {[%emt 0:00:06]} Bg7 {[%emt 0:00:24]} 7. O-O {[%emt 0:00:11]} Nge7 {[%emt 0:00:15]} 8. c3 {[%emt 0:00:57]} O-O {[%emt 0:00:13]} 9. Nb3 {[%emt 0:00:45]} b6 {[%emt 0:01:30]} 10. Bf4 {[%emt 0:01:21]} Bb7 {[%emt 0:01:09]} 11. Qd2 {[%emt 0:02:13]} d5 {[%emt 0:03:21]} 12. Qd1 {[%emt 0:01:33]} e5 {[%emt 0:05:37]} 13. Bc1 {[%emt 0:02:31]} dxe4 {[%emt 0:04:24]} 14. dxe4 {[%emt 0:01:24]} f5 {[%emt 0:04:20]} 15. exf5 {[%emt 0:01:42]} Nxf5 {[%emt 0:00:11]} 16. Ng5 {[%emt 0:00:27]} Qe7 {[%emt 0:00:42]} 17. Bd5+ {[%emt 0:01:41]} Kh8 {[%emt 0:00:32]} 18. Ne6 {[%emt 0:01:22]} Rfe8 {[%emt 0:01:27]} 19. Qf3 {[%emt 0:01:57]} c4 {[%emt 0:01:14]} 20. Nd2 {[%emt 0:01:55]} Rac8 {[%emt 0:02:29]} 21. Nxc4 {[%emt 0:05:14]} Na5 {[%emt 0:04:51]} 22. Bxb7 {[%emt 0:02:46]} Nxb7 {[%emt 0:02:57]} 23. Nxg7 {[%emt 0:00:11]} Nxg7 {[%emt 0:00:20]} 24. Ne3 {[%emt 0:05:07]} Nd6 {[%emt 0:12:35]} 25. Rd1 {[%emt 0:02:35]} e4 {[%emt 0:00:31]} 26. Qe2 {[%emt 0:01:05]} Nf7 {[%emt 0:01:13]} 27. Qxa6 {[%emt 0:00:42]} Qe6 {[%emt 0:00:18]} 28. Qe2 {[%emt 0:01:03]} Ne5 {[%emt 0:00:45]} 29. Kg2 {[%emt 0:01:07]} Nf3 {[%emt 0:01:35]} 30. h3 {[%emt 0:02:40]} Ng5 {[%emt 0:00:46]} 31. Qg4 {[%emt 0:01:00]} Qf6 {[%emt 0:03:15]} 32. Nd5 {[%emt 0:02:03]} Qf3+ {[%emt 0:00:10]} 33. Qxf3 {[%emt 0:00:13]} exf3+ {[%emt 0:00:05]} 34. Kh2 {[%emt 0:00:18]} Ne4 {[%emt 0:01:06]} 35. Be3 {[%emt 0:03:44]} b5 {[%emt 0:00:52]} 36. Nb4 {[%emt 0:00:58]} Rcd8 {[%emt 0:00:51]} 37. Bd4 {[%emt 0:01:43]} Kg8 {[%emt 0:01:08]} 38. Bxg7 {[%emt 0:01:10]} Kxg7 {[%emt 0:00:08]} 39. Kg1 {[%emt 0:00:11]} Ng5 {[%emt 0:00:32]} 40. h4 {[%emt 0:00:34]} Nh3+ {[%emt 0:00:50]} 41. Kf1 {[%emt 0:31:14]} Ra8 {[%emt 0:32:00]} 42. Rd3 {[%emt 0:00:39]} Rf8 {[%emt 0:00:23]} 43. Re1 {[%emt 0:00:28]} g5 {[%emt 0:01:21]} 44. hxg5 {[%emt 0:01:09]} Nxg5 {[%emt 0:00:15]} 45. Re5 {[%emt 0:00:20]} h6 {[%emt 0:00:08]} 46. Rxb5 {[%emt 0:00:26]} Rad8 47. Rxd8 Rxd8 {[%emt 0:02:08]} 48. Rd5 {[%emt 0:00:57]} Re8 {[%emt 0:00:16]} 49. Rd2 {[%emt 0:00:20]} Kf6 {[%emt 0:00:43]} 50. a4 {[%emt 0:00:08]} Ra8 {[%emt 0:00:12]} 51. Nc6 {[%emt 0:00:07]} Rxa4 {[%emt 0:00:19]} 52. Rd1 {[%emt 0:00:11]} Ra2 {[%emt 0:00:24]} 53. Rb1 {[%emt 0:00:20]} Ra6 {[%emt 0:00:16]} 54. Nd4 {[%emt 0:00:19]} Nh3 {[%emt 0:00:27]} 55. Nxf3 {[%emt 0:00:20]} Kg6 {[%emt 0:00:19]} 56. Kg2 {[%emt 0:00:11]} Ng5 {[%emt 0:00:12]} 57. Nxg5 {[%emt 0:00:49]} Kxg5 {[%emt 0:00:13]} 58. b4 {[%emt 0:00:05]} Kf5 {[%emt 0:00:15]} 59. b5 {[%emt 0:00:06]} Rb6 {[%emt 0:00:09]} 60. c4 {[%emt 0:00:08]} Ke6 {[%emt 0:00:05]} 61. c5 {[%emt 0:00:11]} Rb8 {[%emt 0:00:05]} 62. Rh1 {[%emt 0:00:49]} Rh8 {[%emt 0:00:14]} 63. b6 {[%emt 0:00:07]} Kd7 {[%emt 0:00:10]} 64. b7 {[%emt 0:00:17]} Kc7 {[%emt 0:00:08]} 65. c6 {[%emt 0:00:14]} Kb8 {[%emt 0:00:21]} 66. Ra1 {[%emt 0:00:13]} Kc7 {[%emt 0:00:20]} 67. Ra8 {[%emt 0:00:14]} Rb8 {[%emt 0:00:04]} 68. Rxb8 {[%emt 0:00:10]} Kxb8 {[%emt 0:00:02]} 69. f4 {[%emt 0:00:12]} Kc7 {[%emt 0:00:04]} 70. f5 {[%emt 0:00:04]} Kxc6 {[%emt 0:00:05]} 71. b8=Q {[%emt 0:00:07]} Kc5 {[%emt 0:00:03]} 72. f6 {[%emt 0:00:04]} h5 {[%emt 0:00:05]} 73. f7 {[%emt 0:00:04]} h4 {[%emt 0:00:05]} 74. f8=Q+ {[%emt 0:00:08]} Kc6 {[%emt 0:00:04]} 75. Qfd6# {[%emt 0:00:05]} 1-0

[Event "GER-ch Youth U12W 2020"]
[Site "Willingen"]
[Date "2020.10.31"]
[Round "7.12"]
[White "Steinlechner, Katja"]
[Black "Siegel, Irene"]
[Result "1/2-1/2"]
[ECO "D60"]
[WhiteElo "1366"]
[BlackElo "1380"]
[Annotator "NA RC"]
[PlyCount "101"]
[EventDate "2020.10.27"]
[EventType "swiss"]
[EventRounds "7"]
[EventCountry "GER"]
[SourceTitle "playchess.com"]
[Source "ChessBase"]
[SourceQuality "1"]
[TimeControl "40/5400+30:1800+30"]

1. d4 {[%emt 0:00:00]} d5 {[%emt 0:00:00]} 2. c4 {[%emt 0:00:00]} e6 {[%emt 0:00:00]} 3. Nc3 {[%emt 0:00:00]} Nf6 {[%emt 0:00:00]} 4. Bg5 {[%emt 0:00:00]} Be7 {[%emt 0:00:04]} 5. e3 {[%emt 0:00:13]} O-O {[%emt 0:00:10]} 6. Nf3 {[%emt 0:00:12]} Nbd7 {[%emt 0:00:11]} 7. cxd5 {[%emt 0:00:21]} exd5 {[%emt 0:00:23]} 8. Bd3 {[%emt 0:00:22]} b6 {[%emt 0:00:23]} 9. O-O {[%emt 0:00:26]} Bb7 {[%emt 0:00:11]} 10. Qc2 {[%emt 0:00:47]} h6 {[%emt 0:00:31]} 11. Bh4 {[%emt 0:00:27]} c5 {[%emt 0:00:44]} 12. Rad1 {[%emt 0:00:37]} c4 {[%emt 0:00:14]} 13. Bf5 {[%emt 0:00:39]} a6 {[%emt 0:00:25]} 14. Ne5 {[%emt 0:01:09]} b5 {[%emt 0:02:41]} 15. a3 {[%emt 0:01:44]} Re8 {[%emt 0:01:32]} 16. f4 {[%emt 0:01:33]} Nf8 {[%emt 0:02:18]} 17. Rf3 {[%emt 0:02:23]} Bc8 {[%emt 0:04:34]} 18. Bh3 {[%emt 0:06:19]} Bxh3 {[%emt 0:12:01]} 19. Rxh3 {[%emt 0:01:01]} N8d7 {[%emt 0:02:33]} 20. Rf1 {[%emt 0:06:16]} Nf8 {[%emt 0:09:04]} 21. Bxf6 {[%emt 0:14:31]} Bxf6 {[%emt 0:00:42]} 22. g4 {[%emt 0:01:23]} Bh4 {[%emt 0:04:39]} 23. Nxd5 {[%emt 0:05:54]} Qxd5 {[%emt 0:04:32]} 24. Rxh4 {[%emt 0:00:30]} Qd8 {[%emt 0:01:20]} 25. g5 {[%emt 0:05:17]} hxg5 {[%emt 0:03:10]} 26. Rh8+ {[%emt 0:02:48]} Kxh8 {[%emt 0:00:42]} 27. Nxf7+ {[%emt 0:00:22]} Kg8 {[%emt 0:00:13]} 28. Nxd8 {[%emt 0:00:31]} Raxd8 {[%emt 0:00:27]} 29. fxg5 {[%emt 0:02:03]} Rxe3 {[%emt 0:02:30]} 30. Qf2 {[%emt 0:01:28]} Re7 {[%emt 0:01:04]} 31. d5 {[%emt 0:02:57]} Rde8 {[%emt 0:03:00]} 32. d6 {[%emt 0:03:39]} Rd7 {[%emt 0:00:55]} 33. h4 {[%emt 0:02:30]} Ne6 {[%emt 0:02:00]} 34. g6 {[%emt 0:01:59]} Rf8 {[%emt 0:02:06]} 35. Qg3 {[%emt 0:02:53]} Rdd8 {[%emt 0:02:33]} 36. Rxf8+ {[%emt 0:02:32]} Rxf8 {[%emt 0:00:11]} 37. d7 {[%emt 0:00:50]} Nd4 {[%emt 0:00:52]} 38. Qd6 {[%emt 0:01:41]} Ne2+ {[%emt 0:00:50]} 39. Kh2 {[%emt 0:00:53]} Rf2+ {[%emt 0:02:14]} 40. Kh3 {[%emt 0:01:36]} Rf8 {[%emt 0:08:04]} 41. d8=Q {[%emt 0:30:32]} Nf4+ {[%emt 0:30:35]} 42. Qxf4 {[%emt 0:04:49]} Rxd8 {[%emt 0:00:09]} 43. Qf7+ {[%emt 0:00:59]} Kh8 {[%emt 0:00:17]} 44. h5 {[%emt 0:01:18]} Rg8 {[%emt 0:03:12]} 45. h6 {[%emt 0:04:19]} a5 {[%emt 0:00:41]} 46. h7 {[%emt 0:03:24]} Rd8 {[%emt 0:00:15]} 47. Qc7 {[%emt 0:03:38]} Re8 {[%emt 0:00:24]} 48. Qxa5 {[%emt 0:00:40]} b4 {[%emt 0:00:10]} 49. Qxb4 {[%emt 0:01:00]} c3 {[%emt 0:00:09]} 50. Qxc3 {[%emt 0:00:50]} Re3+ {[%emt 0:00:19]} 51. Qxe3 1/2-1/2

[Event "GER-ch Youth U12W 2020"]
[Site "Willingen"]
[Date "2020.10.31"]
[Round "7.13"]
[White "Glotz, Diana"]
[Black "Margaryan, Venera"]
[Result "0-1"]
[ECO "D35"]
[WhiteElo "1098"]
[BlackElo "1457"]
[Annotator "NA RC"]
[PlyCount "154"]
[EventDate "2020.10.27"]
[EventType "swiss"]
[EventRounds "7"]
[EventCountry "GER"]
[SourceTitle "playchess.com"]
[Source "ChessBase"]
[SourceQuality "1"]
[TimeControl "40/5400+30:1800+30"]

1. c4 {[%emt 0:00:00]} e6 {[%emt 0:00:00]} 2. Nc3 {[%emt 0:00:00]} d5 {[%emt 0:00:00]} 3. cxd5 {[%emt 0:00:00]} exd5 {[%emt 0:00:00]} 4. d4 {[%emt 0:00:06]} Nf6 {[%emt 0:00:52]} 5. Bg5 {[%emt 0:00:16]} Be7 {[%emt 0:00:26]} 6. e3 {[%emt 0:00:42]} c6 {[%emt 0:01:37]} 7. Bd3 {[%emt 0:00:28]} Be6 {[%emt 0:01:03]} 8. Nge2 {[%emt 0:00:54]} Qc8 {[%emt 0:05:28]} 9. O-O {[%emt 0:06:47]} Bf5 {[%emt 0:02:23]} 10. f3 {[%emt 0:04:23]} Qe6 {[%emt 0:02:33]} 11. Ng3 {[%emt 0:06:41]} Bxd3 {[%emt 0:01:16]} 12. Qxd3 {[%emt 0:00:54]} h6 {[%emt 0:01:27]} 13. Bxf6 {[%emt 0:01:44]} Bxf6 {[%emt 0:01:37]} 14. Rfe1 {[%emt 0:01:54]} O-O {[%emt 0:03:11]} 15. e4 {[%emt 0:01:18]} dxe4 {[%emt 0:04:37]} 16. Rxe4 {[%emt 0:03:43]} Qd7 {[%emt 0:01:46]} 17. Rg4 {[%emt 0:05:08]} Rd8 {[%emt 0:03:42]} 18. Rd1 {[%emt 0:08:04]} c5 {[%emt 0:03:44]} 19. d5 {[%emt 0:10:18]} Nc6 {[%emt 0:02:29]} 20. Qb1 {[%emt 0:08:20]} Bd4+ {[%emt 0:08:37]} 21. Kf1 {[%emt 0:05:45]} Ne7 {[%emt 0:01:34]} 22. a3 {[%emt 0:14:12]} Nxd5 {[%emt 0:01:28]} 23. Nxd5 {[%emt 0:00:29]} Qxd5 {[%emt 0:00:41]} 24. b3 {[%emt 0:02:09]} Qc6 {[%emt 0:03:52]} 25. a4 {[%emt 0:03:21]} Qa6+ {[%emt 0:01:24]} 26. Ne2 {[%emt 0:04:06]} Re8 {[%emt 0:00:53]} 27. Re4 {[%emt 0:01:06]} Rxe4 {[%emt 0:02:41]} 28. Qxe4 {[%emt 0:01:18]} Kf8 {[%emt 0:03:16]} 29. Qd3 {[%emt 0:03:50]} Qxd3 {[%emt 0:01:12]} 30. Rxd3 {[%emt 0:00:09]} Rd8 {[%emt 0:01:21]} 31. Nxd4 {[%emt 0:01:12]} cxd4 {[%emt 0:01:12]} 32. Ke2 {[%emt 0:01:50]} Ke7 {[%emt 0:00:35]} 33. Rd1 {[%emt 0:00:22]} Ke6 {[%emt 0:00:34]} 34. Kd3 {[%emt 0:00:28]} Kd5 {[%emt 0:05:51]} 35. Rc1 {[%emt 0:01:36]} Rd7 {[%emt 0:02:52]} 36. Rc4 {[%emt 0:01:12]} Ke5 {[%emt 0:00:36]} 37. g3 {[%emt 0:00:21]} g5 {[%emt 0:00:57]} 38. Rc5+ {[%emt 0:01:19]} Rd5 {[%emt 0:01:12]} 39. Rc7 {[%emt 0:00:45]} a6 {[%emt 0:12:07]} 40. b4 {[%emt 0:01:28]} b5 {[%emt 0:06:57]} 41. a5 {[%emt 0:30:49]} Rd6 {[%emt 0:39:50]} 42. Rc5+ {[%emt 0:00:00]} Kf6 {[%emt 0:00:00]} 43. Ke4 {[%emt 0:00:00]} d3 {[%emt 0:00:00]} 44. Rc1 {[%emt 0:00:00]} d2 {[%emt 0:00:00]} 45. Rd1 {[%emt 0:00:00]} Ke6 {[%emt 0:00:00]} 46. Ke3 {[%emt 0:00:00]} Ke5 {[%emt 0:00:00]} 47. f4+ {[%emt 0:00:00]} gxf4+ {[%emt 0:00:00]} 48. gxf4+ {[%emt 0:00:00]} Kf5 {[%emt 0:00:00]} 49. h3 {[%emt 0:00:00]} f6 {[%emt 0:00:00]} 50. Rxd2 {[%emt 0:00:00]} Rxd2 {[%emt 0:00:00]} 51. Kxd2 {[%emt 0:00:00]} Kxf4 {[%emt 0:00:00]} 52. Kd3 {[%emt 0:00:00]} f5 {[%emt 0:00:00]} 53. Kd4 {[%emt 0:00:00]} Kg3 {[%emt 0:00:00]} 54. Kc5 {[%emt 0:00:00]} f4 {[%emt 0:00:00]} 55. Kb6 {[%emt 0:00:00]} f3 {[%emt 0:00:00]} 56. Kxa6 {[%emt 0:00:00]} f2 {[%emt 0:00:00]} 57. Kb7 {[%emt 0:00:00]} f1=Q {[%emt 0:00:00]} 58. a6 {[%emt 0:00:00]} Qf3+ {[%emt 0:00:00]} 59. Kb6 {[%emt 0:00:00]} Qa8 {[%emt 0:00:00]} 60. Kxb5 {[%emt 0:00:00]} Kxh3 {[%emt 0:00:00]} 61. Ka5 {[%emt 0:00:00]} Kg3 {[%emt 0:00:00]} 62. b5 {[%emt 0:00:00]} h5 {[%emt 0:00:00]} 63. b6 {[%emt 0:00:00]} h4 {[%emt 0:00:00]} 64. b7 {[%emt 0:00:00]} Qa7 {[%emt 0:00:00]} 65. Kb5 {[%emt 0:00:00]} h3 {[%emt 0:00:00]} 66. Kc6 {[%emt 0:00:00]} Qxa6+ {[%emt 0:00:00]} 67. Kc7 {[%emt 0:00:00]} Qxb7+ {[%emt 0:00:00]} 68. Kxb7 {[%emt 0:00:00]} h2 {[%emt 0:00:00]} 69. Kb6 {[%emt 0:00:00]} h1=Q {[%emt 0:00:00]} 70. Kc5 {[%emt 0:00:00]} Qe4 {[%emt 0:00:00]} 71. Kd6 {[%emt 0:00:00]} Kf4 {[%emt 0:00:00]} 72. Kd7 {[%emt 0:00:00]} Qe5 {[%emt 0:00:00]} 73. Kc6 {[%emt 0:00:00]} Ke4 {[%emt 0:00:00]} 74. Kb6 {[%emt 0:00:00]} Qd5 {[%emt 0:00:00]} 75. Ka6 {[%emt 0:00:00]} Kd4 {[%emt 0:00:00]} 76. Kb6 {[%emt 0:00:00]} Qc5+ {[%emt 0:00:00]} 77. Ka6 {[%emt 0:00:00]} Qb4 {[%emt 0:00:00]} 0-1

[Event "GER-ch Youth U12W 2020"]
[Site "Willingen"]
[Date "2020.10.31"]
[Round "7.14"]
[White "Eichhorn, Mathilda"]
[Black "Pröttel, Ela"]
[Result "1/2-1/2"]
[ECO "B01"]
[WhiteElo "1560"]
[BlackElo "1229"]
[Annotator "NA RC"]
[PlyCount "88"]
[EventDate "2020.10.27"]
[EventType "swiss"]
[EventRounds "7"]
[EventCountry "GER"]
[SourceTitle "playchess.com"]
[Source "ChessBase"]
[SourceQuality "1"]
[TimeControl "40/5400+30:1800+30"]

1. e4 {[%emt 0:00:00]} d5 {[%emt 0:00:00]} 2. exd5 {[%emt 0:00:00]} Qxd5 {[%emt 0:00:00]} 3. Nc3 {[%emt 0:00:00]} Qa5 {[%emt 0:00:00]} 4. d4 {[%emt 0:00:32]} Nf6 {[%emt 0:00:00]} 5. Bc4 {[%emt 0:00:44]} Nc6 {[%emt 0:02:38]} 6. Bd2 {[%emt 0:01:47]} Nxd4 {[%emt 0:03:32]} 7. Nb5 {[%emt 0:04:49]} Qb6 {[%emt 0:01:09]} 8. Be3 {[%emt 0:00:58]} c5 {[%emt 0:00:29]} 9. Bxd4 {[%emt 0:05:24]} cxd4 {[%emt 0:00:16]} 10. Qxd4 {[%emt 0:01:02]} Qxd4 {[%emt 0:01:44]} 11. Nxd4 {[%emt 0:00:08]} a6 {[%emt 0:04:14]} 12. f3 {[%emt 0:06:52]} b5 {[%emt 0:04:56]} 13. Bd3 {[%emt 0:02:14]} Bb7 {[%emt 0:01:17]} 14. O-O-O {[%emt 0:00:25]} e6 {[%emt 0:00:42]} 15. Nge2 {[%emt 0:02:31]} Bc5 {[%emt 0:03:38]} 16. Kb1 {[%emt 0:12:20]} O-O {[%emt 0:00:27]} 17. Nb3 {[%emt 0:00:27]} Bb6 {[%emt 0:03:07]} 18. Rhe1 {[%emt 0:02:43]} Rac8 {[%emt 0:01:40]} 19. Ng3 {[%emt 0:01:56]} Rfd8 {[%emt 0:08:27]} 20. Ne4 {[%emt 0:28:07]} Nd5 {[%emt 0:05:10]} 21. Ng3 {[%emt 0:13:45]} Nf4 {[%emt 0:04:47]} 22. Rd2 {[%emt 0:01:02]} Nxd3 {[%emt 0:01:19]} 23. Rxd3 {[%emt 0:01:11]} Rxd3 {[%emt 0:01:01]} 24. cxd3 {[%emt 0:00:14]} Kf8 {[%emt 0:08:53]} 25. Ne4 {[%emt 0:00:50]} Bxe4 {[%emt 0:02:30]} 26. dxe4 {[%emt 0:00:32]} Ke7 {[%emt 0:12:29]} 27. Rd1 {[%emt 0:02:53]} a5 {[%emt 0:11:51]} 28. Nd4 {[%emt 0:03:04]} Bxd4 {[%emt 0:00:23]} 29. Rxd4 {[%emt 0:00:07]} Rd8 {[%emt 0:00:10]} 30. Rxd8 {[%emt 0:00:29]} Kxd8 {[%emt 0:00:05]} 31. Kc2 {[%emt 0:00:07]} e5 {[%emt 0:00:38]} 32. Kc3 {[%emt 0:00:24]} g6 {[%emt 0:02:06]} 33. b3 {[%emt 0:00:40]} Kd7 {[%emt 0:04:05]} 34. g4 {[%emt 0:03:20]} g5 {[%emt 0:07:07]} 35. h3 {[%emt 0:00:57]} Kc6 {[%emt 0:00:49]} 36. a3 {[%emt 0:01:42]} h6 {[%emt 0:01:09]} 37. b4 {[%emt 0:00:20]} a4 {[%emt 0:02:01]} 38. Kd3 {[%emt 0:00:22]} Kd6 {[%emt 0:00:09]} 39. Ke3 {[%emt 0:00:11]} Ke6 {[%emt 0:00:12]} 40. Kf2 {[%emt 0:00:08]} Kf6 {[%emt 0:00:27]} 41. Kg3 {[%emt 0:31:37]} Kg6 {[%emt 0:30:40]} 42. Kg2 {[%emt 0:00:51]} h5 {[%emt 0:01:13]} 43. Kg3 {[%emt 0:01:40]} hxg4 {[%emt 0:00:34]} 44. hxg4 {[%emt 0:00:09]} f6 {[%emt 0:01:50]} 1/2-1/2